[Event "Early-Titled-Tuesday-Blitz-January-16-2024"]
[Site "Chess.com"]
[Date "2024.01.16"]
[Round "6"]
[White "Aguiar94"]
[Black "UK_23"]
[Result "1-0"]
[WhiteElo "2530"]
[BlackElo "2365"]
[TimeControl "180+1"]
[EndTime "9:08:05 PST"]
[Termination "Aguiar94 won by resignation"]

1. e4 {[%clk 0:03:00.9]} 1... c6 {[%clk 0:02:58.7]} 2. d4 {[%clk 0:03:00.7]}
2... d5 {[%clk 0:02:59.3]} 3. e5 {[%clk 0:03:01.3]} 3... c5 {[%clk 0:02:59.6]}
4. dxc5 {[%clk 0:03:02.2]} 4... e6 {[%clk 0:02:59.8]} 5. a3 {[%clk 0:03:00.5]}
5... Bxc5 {[%clk 0:02:59.5]} 6. b4 {[%clk 0:02:58.4]} 6... Bb6 {[%clk
0:02:59.8]} 7. Nf3 {[%clk 0:02:57.6]} 7... a5 {[%clk 0:02:59.4]} 8. Bb2 {[%clk
0:02:57.2]} 8... axb4 {[%clk 0:02:58.7]} 9. axb4 {[%clk 0:02:58.1]} 9... Rxa1
{[%clk 0:02:58.9]} 10. Bxa1 {[%clk 0:02:59]} 10... Ne7 {[%clk 0:02:59.4]} 11.
Bd3 {[%clk 0:02:58.5]} 11... Ng6 {[%clk 0:02:59.4]} 12. Qd2 {[%clk 0:02:54.9]}
12... Nd7 {[%clk 0:02:53.2]} 13. O-O {[%clk 0:02:50.8]} 13... Bc7 {[%clk
0:02:53.6]} 14. Re1 {[%clk 0:02:50.7]} 14... O-O {[%clk 0:02:51]} 15. g3 {[%clk
0:02:49.7]} 15... b6 {[%clk 0:02:32.7]} 16. h4 {[%clk 0:02:48.9]} 16... h6
{[%clk 0:02:29.4]} 17. Bd4 {[%clk 0:02:43.8]} 17... Bb7 {[%clk 0:02:28.3]} 18.
Nc3 {[%clk 0:02:43.4]} 18... Qe7 {[%clk 0:02:22.6]} 19. Nb5 {[%clk 0:02:42]}
19... Bb8 {[%clk 0:02:21.7]} 20. h5 {[%clk 0:02:40.7]} 20... Nh8 {[%clk
0:02:21.7]} 21. c3 {[%clk 0:02:37.8]} 21... Ba6 {[%clk 0:02:20.1]} 22. Ra1
{[%clk 0:02:32.8]} 22... Bxb5 {[%clk 0:02:15.3]} 23. Bxb5 {[%clk 0:02:33.7]}
23... f6 {[%clk 0:02:11]} 24. Bxd7 {[%clk 0:02:27.1]} 24... Qxd7 {[%clk
0:02:10.4]} 25. exf6 {[%clk 0:02:26.5]} 25... gxf6 {[%clk 0:02:10]} 26. Qxh6
{[%clk 0:02:25.3]} 26... e5 {[%clk 0:02:09.9]} 27. Bxb6 {[%clk 0:02:23.9]} 27...
Qc6 {[%clk 0:01:58.5]} 28. Bc5 {[%clk 0:02:23.4]} 28... Rf7 {[%clk 0:01:56.4]}
29. Nh4 {[%clk 0:02:16.1]} 29... Bd6 {[%clk 0:00:46.9]} 30. Bxd6 {[%clk
0:02:02.3]} 30... Qxd6 {[%clk 0:00:47.8]} 31. Ra8+ {[%clk 0:02:02.2]} 31... Rf8
{[%clk 0:00:48.3]} 32. Nf5 {[%clk 0:02:02.6]} 1-0

[Event "Early-Titled-Tuesday-Blitz-January-16-2024"]
[Site "Chess.com"]
[Date "2024.01.16"]
[Round "6"]
[White "shirovin"]
[Black "Danito1954"]
[Result "1-0"]
[WhiteElo "1990"]
[BlackElo "2121"]
[TimeControl "180+1"]
[EndTime "9:08:05 PST"]
[Termination "shirovin won on time"]

1. e4 {[%clk 0:03:00.9]} 1... e5 {[%clk 0:02:55.7]} 2. Nf3 {[%clk 0:03:00]} 2...
Nc6 {[%clk 0:02:56]} 3. Bc4 {[%clk 0:03:00.1]} 3... Bc5 {[%clk 0:02:56.3]} 4. b4
{[%clk 0:02:54.6]} 4... Bxb4 {[%clk 0:02:55.3]} 5. c3 {[%clk 0:02:54.4]} 5...
Ba5 {[%clk 0:02:55.6]} 6. d4 {[%clk 0:02:54.1]} 6... exd4 {[%clk 0:02:56.1]} 7.
O-O {[%clk 0:02:53.4]} 7... dxc3 {[%clk 0:02:54.1]} 8. Qb3 {[%clk 0:02:26.6]}
8... Qe7 {[%clk 0:02:48.9]} 9. Bg5 {[%clk 0:02:23.2]} 9... Nf6 {[%clk
0:02:43.3]} 10. Nxc3 {[%clk 0:02:10.7]} 10... Bxc3 {[%clk 0:02:41]} 11. Qxc3
{[%clk 0:02:08.4]} 11... O-O {[%clk 0:02:41]} 12. e5 {[%clk 0:02:01.7]} 12... h6
{[%clk 0:02:20.9]} 13. exf6 {[%clk 0:02:00.6]} 13... Qc5 {[%clk 0:02:17]} 14.
Bxf7+ {[%clk 0:01:59.2]} 14... Rxf7 {[%clk 0:02:16.5]} 15. Qxc5 {[%clk 0:01:59]}
1-0

[Event "Early-Titled-Tuesday-Blitz-January-16-2024"]
[Site "Chess.com"]
[Date "2024.01.16"]
[Round "6"]
[White "ValentinDragnev"]
[Black "ahkashefi2800"]
[Result "1-0"]
[WhiteElo "2783"]
[BlackElo "2561"]
[TimeControl "180+1"]
[EndTime "9:08:13 PST"]
[Termination "ValentinDragnev won on time"]

1. d4 {[%clk 0:03:00.9]} 1... d5 {[%clk 0:02:52.5]} 2. Nf3 {[%clk 0:03:00.9]}
2... Nf6 {[%clk 0:02:51.5]} 3. Bf4 {[%clk 0:03:01.4]} 3... c6 {[%clk 0:02:52.4]}
4. e3 {[%clk 0:02:58.9]} 4... Bg4 {[%clk 0:02:50.9]} 5. c4 {[%clk 0:02:53.8]}
5... e6 {[%clk 0:02:50.7]} 6. Qb3 {[%clk 0:02:53.5]} 6... Qa5+ {[%clk
0:02:07.8]} 7. Nc3 {[%clk 0:02:51.2]} 7... Bb4 {[%clk 0:02:04.7]} 8. Ne5 {[%clk
0:02:38.3]} 8... Nbd7 {[%clk 0:01:21]} 9. Nxg4 {[%clk 0:02:38]} 9... Nxg4 {[%clk
0:01:21.9]} 10. a3 {[%clk 0:02:38.1]} 10... Bxc3+ {[%clk 0:01:20.6]} 11. Qxc3
{[%clk 0:02:39]} 11... Qxc3+ {[%clk 0:01:19.5]} 12. bxc3 {[%clk 0:02:39.9]}
12... O-O {[%clk 0:01:19.9]} 13. Rb1 {[%clk 0:02:39.6]} 13... b6 {[%clk
0:01:18.1]} 14. f3 {[%clk 0:02:37]} 14... Ngf6 {[%clk 0:01:09.4]} 15. Bg3 {[%clk
0:02:33.7]} 15... Rfe8 {[%clk 0:01:05.2]} 16. cxd5 {[%clk 0:02:31]} 16... Nxd5
{[%clk 0:01:03.3]} 17. Kd2 {[%clk 0:02:30.6]} 17... Rad8 {[%clk 0:01:03.3]} 18.
Ba6 {[%clk 0:02:13]} 18... Ne7 {[%clk 0:00:53.7]} 19. Bc7 {[%clk 0:02:11]} 19...
Ra8 {[%clk 0:00:40.5]} 20. Bb7 {[%clk 0:02:09.7]} 1-0

[Event "Early-Titled-Tuesday-Blitz-January-16-2024"]
[Site "Chess.com"]
[Date "2024.01.16"]
[Round "6"]
[White "NMJeevanK"]
[Black "K_A_S_T_O_R"]
[Result "0-1"]
[WhiteElo "2586"]
[BlackElo "2911"]
[TimeControl "180+1"]
[EndTime "9:08:18 PST"]
[Termination "K_A_S_T_O_R won by resignation"]

1. e4 {[%clk 0:03:00.9]} 1... c5 {[%clk 0:02:59.8]} 2. Nc3 {[%clk 0:03:00.9]}
2... e6 {[%clk 0:02:56.1]} 3. g3 {[%clk 0:02:53.8]} 3... d5 {[%clk 0:02:52.9]}
4. exd5 {[%clk 0:02:54.7]} 4... exd5 {[%clk 0:02:53.2]} 5. d4 {[%clk 0:02:55.4]}
5... Nf6 {[%clk 0:02:48.2]} 6. Bg2 {[%clk 0:02:51.1]} 6... cxd4 {[%clk
0:02:43.8]} 7. Qxd4 {[%clk 0:02:50.8]} 7... Nc6 {[%clk 0:02:44]} 8. Qa4 {[%clk
0:02:50.6]} 8... Bb4 {[%clk 0:02:42.6]} 9. Bd2 {[%clk 0:02:29.5]} 9... Qe7+
{[%clk 0:02:29.3]} 10. Nge2 {[%clk 0:02:17.1]} 10... Bd7 {[%clk 0:02:27.6]} 11.
a3 {[%clk 0:02:02.8]} 11... Nd4 {[%clk 0:02:15.2]} 12. Qxb4 {[%clk 0:01:14.2]}
12... Nxc2+ {[%clk 0:02:12.5]} 13. Kd1 {[%clk 0:01:14]} 13... Nxb4 {[%clk
0:02:11.8]} 14. axb4 {[%clk 0:01:14.9]} 14... Qxb4 {[%clk 0:02:05]} 15. Re1
{[%clk 0:01:02.1]} 15... O-O {[%clk 0:02:01.5]} 16. Nc1 {[%clk 0:00:50.6]} 16...
Rfe8 {[%clk 0:01:56.3]} 17. Rxe8+ {[%clk 0:00:38.3]} 17... Rxe8 {[%clk
0:01:55.3]} 18. Nxd5 {[%clk 0:00:38.4]} 18... Ba4+ {[%clk 0:01:40.4]} 19. Rxa4
{[%clk 0:00:32.3]} 19... Qxa4+ {[%clk 0:01:40.5]} 20. b3 {[%clk 0:00:32.9]}
20... Qg4+ {[%clk 0:01:32.9]} 21. f3 {[%clk 0:00:32.3]} 21... Qd4 {[%clk
0:01:32.5]} 0-1

[Event "Early-Titled-Tuesday-Blitz-January-16-2024"]
[Site "Chess.com"]
[Date "2024.01.16"]
[Round "6"]
[White "Malikova777"]
[Black "deribas12345"]
[Result "0-1"]
[WhiteElo "2286"]
[BlackElo "2494"]
[TimeControl "180+1"]
[EndTime "9:08:20 PST"]
[Termination "deribas12345 won by resignation"]

1. d4 {[%clk 0:00:33.7]} 1... c5 {[%clk 0:03:00.9]} 2. c4 {[%clk 0:00:33.4]}
2... cxd4 {[%clk 0:02:59.5]} 3. Qxd4 {[%clk 0:00:34.3]} 3... Nc6 {[%clk
0:02:59]} 4. Qd1 {[%clk 0:00:35.2]} 4... Nf6 {[%clk 0:02:57]} 5. Nf3 {[%clk
0:00:35.3]} 5... e5 {[%clk 0:02:56.6]} 6. g3 {[%clk 0:00:35.6]} 6... e4 {[%clk
0:02:56.3]} 7. Nd4 {[%clk 0:00:35.3]} 7... Qb6 {[%clk 0:02:52.5]} 8. e3 {[%clk
0:00:33.9]} 8... Ne5 {[%clk 0:02:43.6]} 9. Nc3 {[%clk 0:00:26.6]} 9... Bb4
{[%clk 0:02:35.6]} 10. Bd2 {[%clk 0:00:23.3]} 10... O-O {[%clk 0:02:29.3]} 11.
a3 {[%clk 0:00:23.1]} 11... Bxc3 {[%clk 0:02:26.7]} 12. Bxc3 {[%clk 0:00:24]}
12... d6 {[%clk 0:02:27]} 13. Be2 {[%clk 0:00:23.9]} 13... Bh3 {[%clk 0:02:24]}
14. Nc2 {[%clk 0:00:21.9]} 14... Rfd8 {[%clk 0:02:14.9]} 15. Bxe5 {[%clk
0:00:20.6]} 15... dxe5 {[%clk 0:02:14.6]} 16. Qc1 {[%clk 0:00:21.3]} 16... Rac8
{[%clk 0:02:06.1]} 17. Bf1 {[%clk 0:00:18.4]} 17... Bg4 {[%clk 0:02:03.5]} 18.
h3 {[%clk 0:00:17.6]} 18... Bf3 {[%clk 0:01:58.8]} 19. Rg1 {[%clk 0:00:18.5]}
19... Rd1+ {[%clk 0:01:50.5]} 20. Qxd1 {[%clk 0:00:18.8]} 20... Bxd1 {[%clk
0:01:51.4]} 21. Kxd1 {[%clk 0:00:19.7]} 21... Qxb2 {[%clk 0:01:51.1]} 22. g4
{[%clk 0:00:17.1]} 22... Rd8+ {[%clk 0:01:50.5]} 0-1

[Event "Early-Titled-Tuesday-Blitz-January-16-2024"]
[Site "Chess.com"]
[Date "2024.01.16"]
[Round "6"]
[White "whitemirrorninja"]
[Black "Gryffindorac8"]
[Result "1-0"]
[WhiteElo "2490"]
[BlackElo "2353"]
[TimeControl "180+1"]
[EndTime "9:08:23 PST"]
[Termination "whitemirrorninja won on time"]

1. e4 {[%clk 0:03:00.9]} 1... c5 {[%clk 0:03:00]} 2. Nf3 {[%clk 0:03:00.3]} 2...
d6 {[%clk 0:03:00.1]} 3. Nc3 {[%clk 0:03:00.7]} 3... Nf6 {[%clk 0:02:59.2]} 4.
Bc4 {[%clk 0:02:57.9]} 4... a6 {[%clk 0:02:51.4]} 5. e5 {[%clk 0:02:54.4]} 5...
dxe5 {[%clk 0:02:48.5]} 6. Nxe5 {[%clk 0:02:55.3]} 6... e6 {[%clk 0:02:47.8]} 7.
Qf3 {[%clk 0:02:46.8]} 7... Be7 {[%clk 0:02:37.1]} 8. O-O {[%clk 0:02:43.4]}
8... O-O {[%clk 0:02:36.8]} 9. Re1 {[%clk 0:02:40.8]} 9... Nbd7 {[%clk
0:02:18.8]} 10. Nxf7 {[%clk 0:02:37.9]} 10... Rxf7 {[%clk 0:02:15.9]} 11. Bxe6
{[%clk 0:02:38]} 11... Nf8 {[%clk 0:02:12.4]} 12. Bc4 {[%clk 0:02:32.6]} 12...
Bg4 {[%clk 0:01:39.9]} 13. Qxb7 {[%clk 0:02:25]} 13... Rb8 {[%clk 0:01:23.6]}
14. Qxe7 {[%clk 0:02:21.9]} 14... Bh5 {[%clk 0:00:44.4]} 15. d3 {[%clk
0:02:09.9]} 15... Qc8 {[%clk 0:00:32.8]} 16. Bg5 {[%clk 0:02:07.1]} 16... Qf5
{[%clk 0:00:28]} 17. Bxf6 {[%clk 0:02:03.1]} 17... gxf6 {[%clk 0:00:27]} 18. Re3
{[%clk 0:01:53.4]} 18... Bg6 {[%clk 0:00:11.8]} 19. Rg3 {[%clk 0:01:49.5]} 1-0

[Event "Early-Titled-Tuesday-Blitz-January-16-2024"]
[Site "Chess.com"]
[Date "2024.01.16"]
[Round "6"]
[White "Mistango"]
[Black "Pastore1978"]
[Result "1-0"]
[WhiteElo "2486"]
[BlackElo "2278"]
[TimeControl "180+1"]
[EndTime "9:08:32 PST"]
[Termination "Mistango won by resignation"]

1. e4 {[%clk 0:02:55.4]} 1... e6 {[%clk 0:03:00.1]} 2. d3 {[%clk 0:02:55.3]}
2... c5 {[%clk 0:02:59.2]} 3. Nd2 {[%clk 0:02:56.2]} 3... Nc6 {[%clk 0:02:59.7]}
4. Ngf3 {[%clk 0:02:56.6]} 4... g6 {[%clk 0:03:00.2]} 5. g3 {[%clk 0:02:56.7]}
5... Bg7 {[%clk 0:03:00.7]} 6. Bg2 {[%clk 0:02:57.6]} 6... Nge7 {[%clk
0:03:01.4]} 7. O-O {[%clk 0:02:58.2]} 7... O-O {[%clk 0:03:01.9]} 8. Rb1 {[%clk
0:02:55.8]} 8... d6 {[%clk 0:03:01.2]} 9. a3 {[%clk 0:02:55.7]} 9... a5 {[%clk
0:02:59.9]} 10. c3 {[%clk 0:02:55]} 10... e5 {[%clk 0:02:59.2]} 11. Nc4 {[%clk
0:02:54.3]} 11... b5 {[%clk 0:02:56.8]} 12. Ne3 {[%clk 0:02:54.3]} 12... Be6
{[%clk 0:02:54.1]} 13. Ng5 {[%clk 0:02:47.7]} 13... Bc8 {[%clk 0:02:45.3]} 14.
f4 {[%clk 0:02:46.9]} 14... h6 {[%clk 0:02:43.5]} 15. Nf3 {[%clk 0:02:46.9]}
15... Rb8 {[%clk 0:02:30.2]} 16. b4 {[%clk 0:02:33.8]} 16... axb4 {[%clk
0:02:29.8]} 17. cxb4 {[%clk 0:02:31.7]} 17... Be6 {[%clk 0:02:15.4]} 18. f5
{[%clk 0:02:16]} 18... gxf5 {[%clk 0:01:52.2]} 19. Nxf5 {[%clk 0:02:15.7]} 19...
Nxf5 {[%clk 0:01:50.5]} 20. exf5 {[%clk 0:02:16.6]} 20... Bxf5 {[%clk
0:01:36.9]} 21. Nh4 {[%clk 0:02:16.4]} 21... Bd7 {[%clk 0:01:34.4]} 22. Qh5
{[%clk 0:02:16.1]} 22... cxb4 {[%clk 0:01:01.7]} 23. Bxh6 {[%clk 0:02:13.1]}
23... bxa3 {[%clk 0:00:47.8]} 24. Bxc6 {[%clk 0:01:52.1]} 24... Qb6+ {[%clk
0:00:41.8]} 25. Rf2 {[%clk 0:01:51.3]} 25... Qxc6 {[%clk 0:00:37.8]} 26. Qg5
{[%clk 0:01:47.5]} 1-0

[Event "Early-Titled-Tuesday-Blitz-January-16-2024"]
[Site "Chess.com"]
[Date "2024.01.16"]
[Round "6"]
[White "ChainedDowntohell"]
[Black "toninhojit"]
[Result "1-0"]
[WhiteElo "2557"]
[BlackElo "2389"]
[TimeControl "180+1"]
[EndTime "9:08:41 PST"]
[Termination "ChainedDowntohell won by resignation"]

1. d4 {[%clk 0:03:00.9]} 1... Nf6 {[%clk 0:02:59.7]} 2. Nf3 {[%clk 0:02:59.5]}
2... d5 {[%clk 0:02:59.4]} 3. c4 {[%clk 0:02:59.3]} 3... e6 {[%clk 0:02:59.7]}
4. Nc3 {[%clk 0:02:58.8]} 4... c6 {[%clk 0:03:00.4]} 5. g3 {[%clk 0:02:56.3]}
5... dxc4 {[%clk 0:02:52.8]} 6. Bg2 {[%clk 0:02:55.5]} 6... Bb4 {[%clk
0:02:53.5]} 7. O-O {[%clk 0:02:54.2]} 7... Nbd7 {[%clk 0:02:51.6]} 8. Qc2 {[%clk
0:02:46.8]} 8... b5 {[%clk 0:02:36.4]} 9. Ng5 {[%clk 0:02:25.9]} 9... Qb6 {[%clk
0:02:27.6]} 10. a4 {[%clk 0:02:16]} 10... Bxc3 {[%clk 0:02:26.5]} 11. bxc3
{[%clk 0:02:14]} 11... Bb7 {[%clk 0:02:22.9]} 12. Ba3 {[%clk 0:02:12.6]} 12...
h6 {[%clk 0:02:21.1]} 13. Nxe6 {[%clk 0:02:09.8]} 13... fxe6 {[%clk 0:02:18.2]}
14. Qg6+ {[%clk 0:02:07]} 14... Kd8 {[%clk 0:02:18.8]} 15. Qxg7 {[%clk
0:02:02.1]} 15... Re8 {[%clk 0:02:16.1]} 16. Bd6 {[%clk 0:01:48.9]} 16... Nd5
{[%clk 0:02:05.8]} 17. e4 {[%clk 0:01:41.3]} 17... Nxc3 {[%clk 0:02:01]} 18. a5
{[%clk 0:01:37.9]} 18... Ne2+ {[%clk 0:02:00.7]} 19. Kh1 {[%clk 0:01:37]} 19...
Qxd4 {[%clk 0:02:00.9]} 20. e5 {[%clk 0:01:33.7]} 20... a6 {[%clk 0:01:41.5]}
21. Rad1 {[%clk 0:01:31.1]} 21... c3 {[%clk 0:00:53]} 22. Rxd4 {[%clk
0:01:28.7]} 22... Nxd4 {[%clk 0:00:53.9]} 23. Qxh6 {[%clk 0:01:21.7]} 23... Nf5
{[%clk 0:00:43.9]} 24. Qc1 {[%clk 0:01:19.1]} 24... b4 {[%clk 0:00:43.7]} 25.
Bxb4 {[%clk 0:01:17.4]} 25... Nxe5 {[%clk 0:00:41]} 26. Qxc3 {[%clk 0:01:16.4]}
1-0

[Event "Early-Titled-Tuesday-Blitz-January-16-2024"]
[Site "Chess.com"]
[Date "2024.01.16"]
[Round "6"]
[White "Practical-Play"]
[Black "Nikita_Klepikov"]
[Result "0-1"]
[WhiteElo "2493"]
[BlackElo "2361"]
[TimeControl "180+1"]
[EndTime "9:08:41 PST"]
[Termination "Nikita_Klepikov won by checkmate"]

1. f3 {[%clk 0:02:54.4]} 1... d5 {[%clk 0:02:59.6]} 2. Kf2 {[%clk 0:02:55.3]}
2... c5 {[%clk 0:02:59.7]} 3. e3 {[%clk 0:02:54.3]} 3... Nc6 {[%clk 0:03:00.2]}
4. d4 {[%clk 0:02:52.8]} 4... cxd4 {[%clk 0:02:58.1]} 5. exd4 {[%clk 0:02:52.1]}
5... e5 {[%clk 0:02:58.8]} 6. Bb5 {[%clk 0:02:47.8]} 6... Qb6 {[%clk 0:02:52.8]}
7. Nc3 {[%clk 0:02:44]} 7... Be6 {[%clk 0:02:47.9]} 8. Nge2 {[%clk 0:02:41.8]}
8... O-O-O {[%clk 0:02:32.3]} 9. Be3 {[%clk 0:02:38.1]} 9... e4 {[%clk
0:02:17.4]} 10. a4 {[%clk 0:02:20.7]} 10... f5 {[%clk 0:02:11.8]} 11. Nf4 {[%clk
0:01:54.6]} 11... Bf7 {[%clk 0:02:10.8]} 12. h4 {[%clk 0:01:54.4]} 12... Nf6
{[%clk 0:02:09]} 13. Qd2 {[%clk 0:01:41.2]} 13... Bd6 {[%clk 0:02:01.2]} 14. a5
{[%clk 0:01:28.1]} 14... Nxa5 {[%clk 0:01:49.2]} 15. Ncxd5 {[%clk 0:01:17.4]}
15... Nxd5 {[%clk 0:01:30]} 16. Nxd5 {[%clk 0:01:15.1]} 16... Bxd5 {[%clk
0:01:19.7]} 17. Qxa5 {[%clk 0:01:13.8]} 17... f4 {[%clk 0:01:16]} 18. Bc1 {[%clk
0:00:48.1]} 18... Qxd4+ {[%clk 0:01:15.8]} 19. Kf1 {[%clk 0:00:43.2]} 19... Bc5
{[%clk 0:01:11.4]} 20. Qd2 {[%clk 0:00:34.5]} 20... Bc4+ {[%clk 0:01:11.4]} 21.
Bxc4 {[%clk 0:00:26.7]} 21... Qxc4+ {[%clk 0:01:11.8]} 22. Qe2 {[%clk
0:00:27.6]} 22... Rd1# {[%clk 0:01:12]} 0-1

[Event "Early-Titled-Tuesday-Blitz-January-16-2024"]
[Site "Chess.com"]
[Date "2024.01.16"]
[Round "6"]
[White "Volodar_Murzin"]
[Black "Lennis93"]
[Result "1-0"]
[WhiteElo "2929"]
[BlackElo "2777"]
[TimeControl "180+1"]
[EndTime "9:08:51 PST"]
[Termination "Volodar_Murzin won on time"]

1. d4 {[%clk 0:03:00.9]} 1... g6 {[%clk 0:02:47.6]} 2. e4 {[%clk 0:03:00.4]}
2... Bg7 {[%clk 0:02:48]} 3. f4 {[%clk 0:02:59.5]} 3... d6 {[%clk 0:02:30.6]} 4.
Nf3 {[%clk 0:02:55.9]} 4... a6 {[%clk 0:02:29.7]} 5. Be3 {[%clk 0:02:50.7]} 5...
b5 {[%clk 0:02:28.7]} 6. Nbd2 {[%clk 0:02:50.7]} 6... e6 {[%clk 0:02:28.1]} 7.
a4 {[%clk 0:02:51.2]} 7... b4 {[%clk 0:02:24.5]} 8. a5 {[%clk 0:02:51.1]} 8...
Bb7 {[%clk 0:02:23.9]} 9. Bd3 {[%clk 0:02:51.2]} 9... Nd7 {[%clk 0:02:21.6]} 10.
O-O {[%clk 0:02:44.5]} 10... c5 {[%clk 0:02:18.8]} 11. dxc5 {[%clk 0:02:38.5]}
11... dxc5 {[%clk 0:02:18.9]} 12. Nc4 {[%clk 0:02:37.5]} 12... Qc7 {[%clk
0:02:14.8]} 13. e5 {[%clk 0:02:37.3]} 13... Nh6 {[%clk 0:02:05]} 14. Nd6+ {[%clk
0:02:35.5]} 14... Kf8 {[%clk 0:02:04.8]} 15. Ng5 {[%clk 0:02:32.4]} 15... Bd5
{[%clk 0:02:01.7]} 16. Bc4 {[%clk 0:02:27.6]} 16... Qc6 {[%clk 0:01:57.1]} 17.
Qe2 {[%clk 0:02:21.8]} 17... Kg8 {[%clk 0:01:23.9]} 18. Rfd1 {[%clk 0:02:14.9]}
18... Bxc4 {[%clk 0:00:44]} 19. Qxc4 {[%clk 0:02:02.3]} 19... Rf8 {[%clk
0:00:32.3]} 20. Qe4 {[%clk 0:01:53.1]} 20... Qc7 {[%clk 0:00:27.5]} 21. Qb7
{[%clk 0:01:51.5]} 21... Qd8 {[%clk 0:00:14]} 22. Ndxf7 {[%clk 0:01:46.6]} 22...
Nxf7 {[%clk 0:00:12.8]} 23. Rxd7 {[%clk 0:01:46.5]} 23... Qe8 {[%clk 0:00:09.9]}
24. Re7 {[%clk 0:01:46.4]} 24... Qb5 {[%clk 0:00:02.4]} 25. Rxf7 {[%clk
0:01:45.3]} 25... Qxb7 {[%clk 0:00:01.8]} 26. Rxb7 {[%clk 0:01:46.2]} 26... Bh6
{[%clk 0:00:01.3]} 27. Nxe6 {[%clk 0:01:46]} 27... Re8 {[%clk 0:00:01.5]} 28.
Nxc5 {[%clk 0:01:46.5]} 28... Rxe5 {[%clk 0:00:01.5]} 29. Bd4 {[%clk 0:01:45.1]}
29... Rxc5 {[%clk 0:00:01.3]} 30. Bxc5 {[%clk 0:01:45.9]} 1-0

[Event "Early-Titled-Tuesday-Blitz-January-16-2024"]
[Site "Chess.com"]
[Date "2024.01.16"]
[Round "6"]
[White "LeoWin2012"]
[Black "Jojo_898"]
[Result "0-1"]
[WhiteElo "2239"]
[BlackElo "2468"]
[TimeControl "180+1"]
[EndTime "9:09:02 PST"]
[Termination "Jojo_898 won on time"]

1. e4 {[%clk 0:02:59]} 1... d6 {[%clk 0:02:58]} 2. d4 {[%clk 0:02:58.7]} 2...
Nf6 {[%clk 0:02:58.3]} 3. Nc3 {[%clk 0:02:57.8]} 3... g6 {[%clk 0:02:58.6]} 4.
Be3 {[%clk 0:02:55.5]} 4... c6 {[%clk 0:02:58.1]} 5. f3 {[%clk 0:02:54]} 5... b5
{[%clk 0:02:57.8]} 6. Qd2 {[%clk 0:02:38.5]} 6... h5 {[%clk 0:02:55.3]} 7. h4
{[%clk 0:02:37.3]} 7... b4 {[%clk 0:02:54.5]} 8. Nce2 {[%clk 0:02:37.2]} 8... a5
{[%clk 0:02:53.2]} 9. Nh3 {[%clk 0:02:22.9]} 9... Bg7 {[%clk 0:02:52.4]} 10. Ng5
{[%clk 0:02:11.6]} 10... Nbd7 {[%clk 0:02:49.9]} 11. Nf4 {[%clk 0:02:05.9]}
11... O-O {[%clk 0:02:46.8]} 12. Nxg6 {[%clk 0:01:52.6]} 12... fxg6 {[%clk
0:02:44.7]} 13. Ne6 {[%clk 0:01:52.4]} 13... Qb6 {[%clk 0:02:41.3]} 14. d5
{[%clk 0:01:43.6]} 14... c5 {[%clk 0:02:38.7]} 15. Nxg7 {[%clk 0:01:24.8]} 15...
Kxg7 {[%clk 0:02:36.7]} 16. Bh6+ {[%clk 0:01:25.3]} 16... Kf7 {[%clk 0:02:28.1]}
17. Bxf8 {[%clk 0:01:26.2]} 17... Nxf8 {[%clk 0:02:28.4]} 18. Be2 {[%clk
0:01:10.4]} 18... Ba6 {[%clk 0:02:24.1]} 19. g4 {[%clk 0:01:08.8]} 19... c4
{[%clk 0:02:13.3]} 20. Qf4 {[%clk 0:01:00]} 20... Kg7 {[%clk 0:01:58.1]} 21.
gxh5 {[%clk 0:00:50.9]} 21... Nxh5 {[%clk 0:01:56.7]} 22. Qg5 {[%clk 0:00:50.7]}
22... c3 {[%clk 0:01:53.8]} 23. Bxa6 {[%clk 0:00:36.8]} 23... cxb2 {[%clk
0:01:49.7]} 24. Rb1 {[%clk 0:00:36.5]} 24... Qxa6 {[%clk 0:01:40.2]} 25. Rg1
{[%clk 0:00:34.1]} 25... Qc4 {[%clk 0:01:38.9]} 26. Qxe7+ {[%clk 0:00:29.6]}
26... Kg8 {[%clk 0:01:35.1]} 27. Qxd6 {[%clk 0:00:01.2]} 27... Qc3+ {[%clk
0:01:32.6]} 0-1

[Event "Early-Titled-Tuesday-Blitz-January-16-2024"]
[Site "Chess.com"]
[Date "2024.01.16"]
[Round "6"]
[White "Maxfan2008"]
[Black "hawes33"]
[Result "1-0"]
[WhiteElo "2494"]
[BlackElo "2286"]
[TimeControl "180+1"]
[EndTime "9:09:11 PST"]
[Termination "Maxfan2008 won by resignation"]

1. d4 {[%clk 0:03:00.9]} 1... Nf6 {[%clk 0:02:59.7]} 2. c4 {[%clk 0:03:01.4]}
2... c5 {[%clk 0:02:42.5]} 3. d5 {[%clk 0:03:01.1]} 3... b5 {[%clk 0:02:39.9]}
4. cxb5 {[%clk 0:03:02]} 4... a6 {[%clk 0:02:39.9]} 5. bxa6 {[%clk 0:03:02.9]}
5... Bxa6 {[%clk 0:02:38.9]} 6. Nc3 {[%clk 0:03:03.4]} 6... g6 {[%clk
0:02:37.2]} 7. g3 {[%clk 0:03:03.6]} 7... Bg7 {[%clk 0:02:37.3]} 8. Bg2 {[%clk
0:03:04.2]} 8... d6 {[%clk 0:02:36.6]} 9. Nf3 {[%clk 0:03:04.6]} 9... O-O {[%clk
0:02:36.8]} 10. O-O {[%clk 0:03:05.3]} 10... Qb6 {[%clk 0:02:34.3]} 11. Ne1
{[%clk 0:03:05.4]} 11... Nbd7 {[%clk 0:02:33.1]} 12. Nc2 {[%clk 0:03:06]} 12...
Ne5 {[%clk 0:02:30.6]} 13. b3 {[%clk 0:03:01]} 13... c4 {[%clk 0:02:29.4]} 14.
Be3 {[%clk 0:02:56.9]} 14... Qc7 {[%clk 0:02:28.6]} 15. b4 {[%clk 0:02:52.9]}
15... Nfg4 {[%clk 0:02:26.2]} 16. Bd4 {[%clk 0:02:52.1]} 16... Rab8 {[%clk
0:02:20]} 17. a4 {[%clk 0:02:50.6]} 17... Bc8 {[%clk 0:02:06.5]} 18. h3 {[%clk
0:02:43.6]} 18... Nh6 {[%clk 0:02:04.6]} 19. g4 {[%clk 0:02:40.7]} 19... f5
{[%clk 0:02:02.3]} 20. g5 {[%clk 0:02:40.3]} 20... Nhf7 {[%clk 0:02:02.1]} 21.
f4 {[%clk 0:02:40.5]} 21... Nd7 {[%clk 0:02:01.1]} 22. Bxg7 {[%clk 0:02:36.9]}
22... Kxg7 {[%clk 0:02:02]} 23. Nd4 {[%clk 0:02:37.2]} 23... Qa7 {[%clk
0:01:55.8]} 24. Kh2 {[%clk 0:02:34.9]} 24... Rxb4 {[%clk 0:01:55.8]} 25. Nc6
{[%clk 0:02:25]} 25... Qc5 {[%clk 0:01:51.7]} 26. Nxb4 {[%clk 0:02:23.7]} 26...
Qxb4 {[%clk 0:01:52.6]} 27. Qd4+ {[%clk 0:02:23.5]} 27... Kg8 {[%clk 0:01:45.1]}
28. a5 {[%clk 0:02:17.6]} 28... Nc5 {[%clk 0:01:38.8]} 29. Qe3 {[%clk
0:01:57.5]} 29... e5 {[%clk 0:01:28.2]} 30. Rfb1 {[%clk 0:01:49]} 30... Nb3
{[%clk 0:01:17.9]} 31. Ra4 {[%clk 0:01:49.1]} 31... Qb8 {[%clk 0:01:00.7]} 32.
Rxc4 {[%clk 0:01:45.2]} 32... Ba6 {[%clk 0:00:57.1]} 33. Rc6 {[%clk 0:01:40.7]}
33... exf4 {[%clk 0:00:41.5]} 34. Qxf4 {[%clk 0:01:39.3]} 34... Bb7 {[%clk
0:00:23.5]} 35. Rxb3 {[%clk 0:01:37.4]} 35... Qa8 {[%clk 0:00:24.4]} 36. Rc7
{[%clk 0:01:32.7]} 36... Ne5 {[%clk 0:00:18.9]} 37. Rbxb7 {[%clk 0:01:30.8]} 1-0